fUSD/lending_fUSD_20251123
["ID","MTS","AMOUNT","RATE_DAILY","PERIOD"]
[394759333,1763929880490,-500.0,0.00039726,8]
[394759334,1763929880500,-500.0,0.00039726,8]
[394759335,1763929880509,-500.0,0.00039726,8]
[394759336,1763929880524,-550.18029041,0.00039726,8]
[394759337,1763929880533,-830.78,0.00039726,8]
[394759338,1763929880543,-6293.43,0.00039726,8]
[394759339,1763929880552,-500.0,0.00039726,8]
[394759340,1763929880561,-500.0,0.00039726,8]
[394759341,1763929880571,-500.0,0.00039726,8]
[394759342,1763929880580,-591.35,0.00039726,8]
[394759343,1763929880589,-500.0,0.00039726,8]
[394759344,1763929880598,-500.0,0.00039726,8]
[394759345,1763929880607,-500.0,0.00039726,8]
[394759346,1763929880617,-1192.17,0.00039726,8]
[394759347,1763929880628,-500.0,0.00039726,8]
[394759348,1763929880638,-500.0,0.00039726,8]
[394759349,1763929880647,-500.0,0.00039726,8]
[394759350,1763929880656,-500.0,0.00039726,8]
[394759351,1763929880666,-500.0,0.00039726,8]
[394759352,1763929880675,-500.0,0.00039726,8]
[394759353,1763929880684,-1000.0,0.00039726,7]
[394759354,1763929880694,-500.0,0.00039726,8]
[394759355,1763929880705,-896.91,0.00039726,8]
[394759356,1763929880714,-694.55,0.00039726,8]
[394759357,1763929880723,-500.0,0.00039726,8]
[394759358,1763929880733,-500.0,0.00039726,8]
[394759359,1763929880743,-500.0,0.00039726,2]
[394759360,1763929880752,-500.0,0.00039726,8]
[394759361,1763929880762,-715.66,0.00039726,8]
[394759362,1763929880772,-500.0,0.00039726,8]
[394759363,1763929880787,-1000.0,0.00039726,8]
[394759364,1763929880799,-1953.68,0.00039726,8]
[394759365,1763929880809,-698.87,0.00039726,8]
[394759366,1763929880819,-592.61,0.00039726,8]
[394759367,1763929880828,-587.71,0.00039726,8]
[394759368,1763929880838,-500.0,0.00039726,8]
[394759369,1763929880848,-500.0,0.00039726,8]
[394759370,1763929880858,-500.0,0.00039726,8]
[394759371,1763929880868,-500.0,0.00039726,8]
[394759372,1763929880878,-500.0,0.00039726,8]
[394759373,1763929880887,-500.0,0.00039726,8]
[394759374,1763929880898,-1649.1,0.00039726,8]
[394759375,1763929880908,-500.0,0.00039726,8]
[394759376,1763929880917,-500.0,0.00039726,8]
[394759377,1763929880926,-589.17,0.00039726,8]
[394759378,1763929880936,-500.0,0.00039726,8]
[394759379,1763929880945,-951.49,0.00039726,8]
[394759380,1763929880956,-503.68,0.00039726,8]
[394759381,1763929880966,-500.0,0.00039726,8]
[394759382,1763929880975,-500.0,0.00039726,8]
[394759383,1763929880984,-419.51783536,0.00039726,8]
[394759384,1763929880994,-500.0,0.00039726,8]
[394759385,1763929881003,-500.0,0.00039726,8]
[394759386,1763929881014,-500.0,0.00039726,8]
[394759387,1763929881024,-500.0,0.00039726,8]
[394759388,1763929881034,-500.0,0.00039726,8]
[394759389,1763929881044,-525.49,0.00039726,8]
[394759390,1763929881054,-500.0,0.00039726,8]
[394759391,1763929881064,-500.0,0.00039726,8]
[394759392,1763929881074,-460.58316343,0.00039726,8]
[394759393,1763929881083,-524.73,0.00039726,8]
[394759394,1763929881092,-500.0,0.00039726,8]
[394759395,1763929881102,-266.75243827,0.00039726,8]
[394759396,1763929881111,-575.69,0.00039726,8]
[394759397,1763929881121,-500.0,0.00039726,8]
[394759398,1763929881130,-500.0,0.00039726,8]
[394759399,1763929881140,-500.0,0.00039726,8]
[394759400,1763929881149,-500.0,0.00039726,8]
[394759401,1763929881159,-500.0,0.00039726,8]
[394759402,1763929881168,-500.0,0.00039726,8]
[394759403,1763929881177,-500.0,0.00039726,8]
[394759404,1763929881187,-500.0,0.00039726,8]
[394759405,1763929881197,-500.0,0.00039726,8]
[394759406,1763929881207,-919.24,0.00039726,8]
[394759407,1763929881216,-829.73,0.00039726,8]
[394759408,1763929881225,-867.96,0.00039726,8]
[394759409,1763929881235,-500.0,0.00039726,8]
[394759410,1763929881243,-759.86,0.00039726,8]
[394759411,1763929881253,-500.0,0.00039726,30]
[394759412,1763929881262,-250.0,0.00039726,5]
[394759413,1763929881271,-1693.61,0.00039732,2]
[394759414,1763929881281,-3454.56532,0.0003979,2]
[394759415,1763929881291,-150.0,0.00039798,120]
[394759416,1763929881300,-2000.0,0.000398,3]
[394759417,1763929881309,-1000.0,0.00039833,7]
[394759418,1763929881318,-500.0,0.00039862,2]
[394759419,1763929881328,-500.0,0.00039862,2]
[394759420,1763929881337,-418.0,0.00039862,2]
[394759421,1763929881346,-899.770546,0.000399,120]
[394759422,1763929881355,-899.770546,0.000399,120]
[394759423,1763929881364,-899.770546,0.000399,120]
[394759424,1763929881373,-899.770542,0.000399,120]
[394759425,1763929881382,-930.74025342,0.000399,120]
[394759426,1763929881391,-930.74025342,0.000399,120]
[394759427,1763929881400,-930.74025342,0.000399,120]
[394759428,1763929881410,-930.74025342,0.000399,120]
[394759429,1763929881419,-930.74025342,0.000399,120]
[394759430,1763929881428,-6543.80980818,0.000399,15]
[394759431,1763929881437,-930.74025342,0.000399,120]
[394759432,1763929881446,-930.74025342,0.000399,120]
[394759433,1763929881455,-930.74025342,0.000399,120]
[394759434,1763929881464,-930.74025342,0.000399,120]
[394759435,1763929881473,-930.74025342,0.000399,120]
[394759436,1763929881482,-930.74025342,0.000399,120]
[394759437,1763929881491,-930.74025342,0.000399,120]
[394759438,1763929881501,-930.74025342,0.000399,120]
[394759439,1763929881510,-930.74025342,0.000399,120]
[394759440,1763929881521,-930.74025342,0.000399,120]
[394759441,1763929881530,-930.74025342,0.000399,120]
[394759442,1763929881539,-930.74025342,0.000399,120]
[394759443,1763929881548,-930.74025342,0.000399,120]
[394759444,1763929881557,-930.74025342,0.000399,120]
[394759445,1763929881566,-930.74,0.000399,120]
[394759446,1763929881576,-2171.72725798,0.000399,120]
[394759447,1763929881585,-2171.72725798,0.000399,120]
[394759448,1763929881595,-2171.72725798,0.000399,120]
[394759449,1763929881604,-2171.72725798,0.000399,120]
[394759450,1763929881613,-2171.72725798,0.000399,120]
[394759451,1763929881623,-2171.72725798,0.000399,120]
[394759452,1763929881636,-2171.72725798,0.000399,120]
[394759453,1763929881646,-2171.72725798,0.000399,120]
[394759454,1763929881655,-2171.72725798,0.000399,120]
[394759455,1763929881669,-2171.72725798,0.000399,120]
[394759456,1763929881679,-2171.72725798,0.000399,120]
[394759457,1763929881689,-2171.72725798,0.000399,120]
[394759458,1763929881700,-2171.72725798,0.000399,120]
[394759459,1763929881710,-2171.72725798,0.000399,120]
[394759460,1763929881720,-2171.72725798,0.000399,120]
[394759461,1763929881729,-2171.72725798,0.000399,120]
[394759462,1763929881739,-2171.72725798,0.000399,120]
[394759463,1763929881748,-452.76703068,0.000399,120]
[394759464,1763929881757,-452.76703068,0.000399,120]
[394759465,1763929881767,-452.76703068,0.000399,120]
[394759466,1763929881778,-452.76703068,0.000399,120]
[394759467,1763929881788,-452.76703068,0.000399,120]
[394759468,1763929881797,-452.76703068,0.000399,120]
[394759469,1763929881806,-452.76703068,0.000399,120]
[394759470,1763929881816,-452.76703068,0.000399,120]
[394759471,1763929881825,-452.76703068,0.000399,120]
[394759472,1763929881834,-452.76703068,0.000399,120]
[394759473,1763929881843,-452.76703068,0.000399,120]
[394759474,1763929881853,-452.76703068,0.000399,120]
[394759475,1763929881862,-452.76703068,0.000399,120]
[394759476,1763929881872,-452.76703068,0.000399,120]
[394759477,1763929881881,-452.76703068,0.000399,120]
[394759478,1763929881892,-452.76703068,0.000399,120]
[394759479,1763929881901,-452.76703068,0.000399,120]
[394759480,1763929881911,-452.76703068,0.000399,120]
[394759481,1763929881921,-452.76703068,0.000399,120]
[394759482,1763929881931,-452.76,0.000399,120]
[394759483,1763929881941,-1056.45640493,0.000399,120]
[394759484,1763929881950,-1056.45640493,0.000399,120]
[394759485,1763929881960,-1056.45640493,0.000399,120]
[394759486,1763929881969,-1056.45640493,0.000399,120]
[394759487,1763929881978,-1056.45640493,0.000399,120]
[394759488,1763929881987,-1056.45640493,0.000399,120]
[394759489,1763929881997,-1056.45640493,0.000399,120]
[394759490,1763929882007,-1056.45640493,0.000399,120]
[394759491,1763929882017,-1056.45640493,0.000399,120]
[394759492,1763929882026,-1056.45640493,0.000399,120]
[394759493,1763929882035,-1056.45640493,0.000399,120]
[394759494,1763929882045,-1056.45640493,0.000399,120]
[394759495,1763929882054,-1056.45640493,0.000399,120]
[394759496,1763929882064,-1056.45640493,0.000399,120]
[394759497,1763929882073,-1056.45640493,0.000399,120]
[394759498,1763929882083,-1056.45640493,0.000399,120]
[394759499,1763929882092,-1056.45640493,0.000399,120]
[394759500,1763929882101,-582.30688846,0.000399,120]
[394759501,1763929882111,-582.30688846,0.000399,120]
[394759502,1763929882120,-582.30688846,0.000399,120]
[394759503,1763929882130,-582.30688846,0.000399,120]
[394759504,1763929882139,-582.30688846,0.000399,120]
[394759505,1763929882148,-582.30688846,0.000399,120]
[394759506,1763929882158,-582.30688846,0.000399,120]
[394759507,1763929882167,-582.30688846,0.000399,120]
[394759508,1763929882176,-582.30688846,0.000399,120]
[394759509,1763929882186,-582.30688846,0.000399,120]
[394759510,1763929882195,-582.30688846,0.000399,120]
[394759511,1763929882205,-479.01988497,0.000399,2]
[394759512,1763929882214,-582.30688846,0.000399,120]
[394759513,1763929882224,-582.30688846,0.000399,120]
[394759514,1763929882235,-582.30688846,0.000399,120]
[394759515,1763929882244,-582.30688846,0.000399,120]
[394759516,1763929882253,-582.30688846,0.000399,120]
[394759517,1763929882263,-582.30688846,0.000399,120]
[394759518,1763929882272,-582.30688846,0.000399,120]
[394759519,1763929882282,-582.30688846,0.000399,120]
[394759520,1763929882292,-582.3,0.000399,120]
[394759521,1763929882301,-1358.71607308,0.000399,120]
[394759522,1763929882310,-1358.71607308,0.000399,120]
[394759523,1763929882319,-1358.71607308,0.000399,120]
[394759524,1763929882329,-1358.71607308,0.000399,120]
[394759525,1763929882338,-1358.71607308,0.000399,120]
[394759526,1763929882348,-1358.71607308,0.000399,120]
[394759527,1763929882358,-1358.71607308,0.000399,120]
[394759528,1763929882368,-1358.71607308,0.000399,120]
[394759529,1763929882378,-1358.71607308,0.000399,120]
[394759530,1763929882387,-1358.71607308,0.000399,120]
[394759531,1763929882397,-1358.71607308,0.000399,120]
[394759532,1763929882406,-1358.71607308,0.000399,120]
[394759533,1763929882416,-1358.71607308,0.000399,120]
[394759534,1763929882425,-1358.71607308,0.000399,120]
[394759535,1763929882434,-1358.71607308,0.000399,120]
[394759536,1763929882443,-1358.71607308,0.000399,120]
[394759537,1763929882455,-1358.71607308,0.000399,120]
[394759538,1763929882465,-1358.71607308,0.000399,120]
[394759539,1763929882475,-1148.0,0.00039917,20]
[394759540,1763929882485,-1215.74815715,0.00039939,2]
[394759541,1763929882495,-80027.57239719,0.0003998,2]
[394759542,1763929882505,-151.0,0.0003998,30]
[394759543,1763929882515,-222.03419501,0.0003999,7]
[394759544,1763929882524,-500.0,0.00039999,2]
[394759545,1763929882534,-500.0,0.00039999,2]
[394759546,1763929882543,-418.0,0.00039999,2]
[394759547,1763929882554,-1000.0,0.00039999,120]
[394759548,1763929882564,-1000.0,0.00039999,120]
[394759549,1763929882574,-1000.0,0.00039999,120]
[394759550,1763929882585,-1000.0,0.00039999,120]
[394759551,1763929882594,-1000.0,0.00039999,120]
[394759552,1763929882604,-1000.0,0.00039999,120]
[394759553,1763929882613,-1000.0,0.00039999,120]
[394759554,1763929882624,-1000.0,0.00039999,120]
[394759555,1763929882638,-50000.0,0.0004,40]
[394759556,1763929882647,-93485.90618789,0.0004,10]
[394759557,1763929882657,-1365619.01836016,0.0004,10]
[394759558,1763929882667,-250.0,0.0004,7]
[394759559,1763929882676,-38194.73873911,0.0004,2]
[394759560,1763929882685,-161.0720951,0.0004,3]
[394759561,1763929882695,-385.71716179,0.0004,2]
[394759562,1763929882708,-216.17649605,0.0004,2]
[394759563,1763929882718,-311.05938041,0.0004,2]
[394759564,1763929882727,-2000.32335949,0.0004,2]
[394759565,1763929882800,-1000.0,0.0004,120]
[394759566,1763929882810,-1000.0,0.0004,120]
[394759567,1763929882819,-1000.0,0.0004,120]
[394759568,1763929882828,-1000.0,0.0004,120]
[394759569,1763929882837,-1000.0,0.0004,120]
[394759570,1763929882846,-222.14,0.0004,120]
[394759571,1763929882855,-1001.0,0.0004,120]
[394759572,1763929882866,-37353.21426142,0.0004,14]
[394759573,1763929882875,-711.72389358,0.0004,120]
[394759574,1763929882884,-190.65320591,0.0004,5]
[394759575,1763929882894,-1118.11014693,0.0004,11]
[394759576,1763929882903,-244.50607524,0.0004,120]
[394759577,1763929882913,-8042.5,0.0004,7]
[394759578,1763929882923,-680.0,0.0004,90]
[394759579,1763929882934,-1026.82,0.0004,120]
[394759580,1763929882943,-300.0,0.0004,120]
[394759581,1763929882953,-200000.0,0.0004,2]
[394759582,1763929882962,-580.23,0.0004,120]
[394759583,1763929882971,-200.0,0.0004,120]
[394759584,1763929882980,-2000.0,0.0004,60]
[394759585,1763929882990,-500.0,0.0004,120]
[394759586,1763929883000,-500.0,0.0004,120]
[394759587,1763929883009,-3805.47686508,0.0004,120]
[394759588,1763929883019,-500.0,0.0004,50]
[394759589,1763929883028,-4125.38491628,0.0004,30]
[394759590,1763929883037,-336.3258659,0.0004,2]
[394759591,1763929883047,-23156.62087525,0.0004,2]
[394759592,1763929883419,-4663.45325746,0.0004,2]
[394759593,1763929883431,-1199.99995,0.0004,2]
[394759594,1763929883926,-2100.0,0.00037808,7]
[394759595,1763929883935,-500.0,0.00038356,8]
[394759596,1763929883945,-500.0,0.00038356,8]
[394759597,1763929883955,-500.0,0.00038356,8]
[394759598,1763929883966,-500.0,0.00038356,8]
[394759599,1763929883975,-500.0,0.00038356,8]
[394759600,1763929883985,-500.0,0.00038356,8]
[394759601,1763929883995,-500.0,0.00038356,8]
[394759602,1763929884004,-238.65901977,0.0003863,8]
[394759603,1763929884013,-500.0,0.0003863,8]
[394759604,1763929884023,-500.0,0.0003863,8]
[394759605,1763929884032,-500.0,0.0003863,8]
[394759606,1763929884041,-2100.0,0.0003863,7]
[394759607,1763929884051,-500.0,0.0003863,8]
[394759608,1763929884060,-489.64,0.00038904,8]
[394759609,1763929884070,-626.85,0.00039178,8]
[394759610,1763929884080,-626.85,0.00039452,8]
[394759611,1763929884090,-2100.0,0.00039452,7]
[394759612,1763929884099,-626.85,0.00039726,8]
[394759613,1763929884109,-1000.0,0.00039999,120]
[394759614,1763929884119,-1000.0,0.00039999,120]
[394759615,1763929884128,-1000.0,0.00039999,120]
[394759616,1763929884138,-1000.0,0.00039999,120]
[394759617,1763929884147,-1000.0,0.00039999,120]
[394759618,1763929884157,-1000.0,0.00039999,120]
[394759619,1763929884166,-1000.0,0.00039999,120]
[394759620,1763929884176,-550.14436788,0.00039999,120]
[394759621,1763929884199,-75.8305336,0.00039999,120]
[394759622,1763929884211,-374.02509852,0.00039999,120]
[394759623,1763929884221,-780.32686554,0.00039999,120]
[394759624,1763929884236,-219.67313446,0.00039999,120]
[394759625,1763929884246,-1000.0,0.00039999,120]
[394759626,1763929884255,-363.9298677,0.00039999,120]
[394759627,1763929884265,-13681.4154374,0.0004,2]
[394759628,1763929884454,-500.0,0.00038356,8]
[394759629,1763929884464,-500.0,0.0003863,8]
[394759630,1763929884473,-43883.61152869,0.0004,2]
[394759631,1763929884486,-17570.0,0.0004,2]
[394759632,1763929884501,-422.54,0.00038904,8]
[394759633,1763929884512,-5692.93176717,0.0004,2]
[394759634,1763929884527,-9313.38112028,0.0004,2]
[394759635,1763929884537,-150.0,0.0004,5]
[394759636,1763929884547,-562.71084337,0.0004,30]
[394759637,1763929884557,-3000.0,0.0004,120]
[394759638,1763929884566,-3031.0,0.0004,120]
[394759639,1763929884576,-3463.0,0.0004,120]
[394759640,1763929884585,-2200.0,0.0004,120]
[394759641,1763929884597,-237.25,0.0004,30]
[394759642,1763929884608,-30231.5080239,0.0004,60]
[394759643,1763929884618,-5016.661172,0.0004,10]
[394759644,1763929884629,-167.18070033,0.0004,10]
[394759645,1763929884638,-2592.25,0.0004,14]
[394759646,1763929884647,-1502.63,0.0004,30]
[394759647,1763929884656,-596.32365265,0.0004,10]
[394759648,1763929884665,-624.67,0.0004,120]
[394759649,1763929884679,-205.67,0.0004,120]
[394759650,1763929884690,-188.23,0.0004,120]
[394759651,1763929884703,-537.05,0.0004,8]
[394759652,1763929884712,-500.0,0.0004,8]
[394759653,1763929884721,-700.0,0.0004,120]
[394759654,1763929884730,-500.0,0.0004,8]
[394759655,1763929884739,-500.0,0.0004,8]
[394759656,1763929884748,-500.0,0.0004,8]
[394759657,1763929884757,-500.0,0.0004,8]
[394759658,1763929884766,-500.0,0.0004,8]
[394759659,1763929884775,-341.34427371,0.0004,8]
[394759660,1763929884783,-500.0,0.0004,8]
[394759661,1763929884792,-500.0,0.0004,8]
[394759662,1763929884802,-500.0,0.0004,8]
[394759663,1763929884812,-500.0,0.0004,8]
[394759664,1763929884821,-764.13,0.0004,8]
[394759665,1763929884830,-500.0,0.0004,8]
[394759666,1763929884839,-500.0,0.0004,8]
[394759667,1763929884849,-500.0,0.0004,8]
[394759668,1763929884859,-500.0,0.0004,8]
[394759669,1763929884868,-500.0,0.0004,8]
[394759670,1763929884877,-500.0,0.0004,8]
[394759671,1763929884887,-500.0,0.0004,8]
[394759672,1763929884896,-500.0,0.0004,8]
[394759673,1763929884905,-500.0,0.0004,8]
[394759674,1763929884915,-500.0,0.0004,8]
[394759675,1763929884924,-500.0,0.0004,8]
[394759676,1763929884935,-500.0,0.0004,8]
[394759677,1763929884944,-500.0,0.0004,8]
[394759678,1763929884953,-500.0,0.0004,8]
[394759679,1763929884963,-500.0,0.0004,8]
[394759680,1763929884972,-502.57,0.0004,8]
[394759681,1763929884981,-734.1,0.0004,8]
[394759682,1763929884990,-500.0,0.0004,8]
[394759683,1763929884999,-500.0,0.0004,8]
[394759684,1763929885008,-500.0,0.0004,8]
[394759685,1763929885017,-500.0,0.0004,8]
[394759686,1763929885026,-386.90589748,0.0004,8]
[394759687,1763929885035,-655.26,0.0004,8]
[394759688,1763929885044,-532.47,0.0004,8]
[394759689,1763929885053,-500.0,0.0004,8]
[394759690,1763929885062,-500.0,0.0004,8]
[394759691,1763929885071,-500.0,0.0004,8]
[394759692,1763929885080,-500.0,0.0004,8]
[394759693,1763929885089,-500.0,0.0004,8]
[394759694,1763929885098,-500.0,0.0004,8]
[394759695,1763929885107,-500.0,0.0004,8]
[394759696,1763929885116,-500.0,0.0004,8]
[394759697,1763929885125,-518.25,0.0004,8]
[394759698,1763929885134,-500.0,0.0004,8]
[394759699,1763929885144,-1000.0,0.0004,8]
[394759700,1763929885153,-1022.99,0.0004,8]
[394759701,1763929885162,-500.0,0.0004,8]
[394759702,1763929885171,-508.79875991,0.0004,8]
[394759703,1763929885180,-903.62,0.0004,8]
[394759704,1763929885189,-500.0,0.0004,8]
[394759705,1763929885198,-500.0,0.0004,8]
[394759706,1763929885208,-500.0,0.0004,8]
[394759707,1763929885217,-500.0,0.0004,8]
[394759708,1763929885226,-500.0,0.0004,8]
[394759709,1763929885235,-506.26,0.0004,8]
[394759710,1763929885244,-560.5,0.0004,8]
[394759711,1763929885253,-580.95,0.0004,8]
[394759712,1763929885262,-150.69038546,0.0004,8]
[394759713,1763929885272,-500.0,0.0004,8]
[394759714,1763929885282,-151.0,0.0004,30]
[394759715,1763929885291,-500.0,0.0004,8]
[394759716,1763929885301,-500.0,0.0004,8]
[394759717,1763929885310,-500.0,0.0004,8]
[394759718,1763929885319,-516.8,0.0004,8]
[394759719,1763929885328,-500.0,0.0004,8]
[394759720,1763929885337,-500.0,0.0004,8]
[394759721,1763929885346,-500.0,0.0004,8]
[394759722,1763929885355,-307.10225283,0.0004,8]
[394759723,1763929885364,-500.0,0.0004,8]
[394759724,1763929885373,-603.56554498,0.0004,8]
[394759725,1763929885382,-500.0,0.0004,8]
[394759726,1763929885391,-500.0,0.0004,8]
[394759727,1763929885399,-500.0,0.0004,8]
[394759728,1763929885409,-500.0,0.0004,8]
[394759729,1763929885418,-500.0,0.0004,8]
[394759730,1763929885427,-500.0,0.0004,8]
[394759731,1763929885437,-529.7,0.0004,8]
[394759732,1763929885446,-525.99,0.0004,8]
[394759733,1763929885456,-500.0,0.0004,8]
[394759734,1763929885466,-592.88,0.0004,8]
[394759735,1763929885474,-539.32,0.0004,8]
[394759736,1763929885484,-809.29,0.0004,8]
[394759737,1763929885493,-500.0,0.0004,8]
[394759738,1763929885503,-500.0,0.0004,8]
[394759739,1763929885512,-568.18,0.0004,8]
[394759740,1763929885520,-500.0,0.0004,8]
[394759741,1763929885529,-500.0,0.0004,8]
[394759742,1763929885538,-501.27,0.0004,8]
[394759743,1763929885547,-500.0,0.0004,8]
[394759744,1763929885555,-500.0,0.0004,8]
[394759745,1763929885564,-500.0,0.0004,8]
[394759746,1763929885573,-500.0,0.0004,8]
[394759747,1763929885583,-500.0,0.0004,8]
[394759748,1763929885591,-500.0,0.0004,8]
[394759749,1763929885600,-500.0,0.0004,8]
[394759750,1763929885609,-500.0,0.0004,8]
[394759751,1763929885618,-549.96,0.0004,8]
[394759752,1763929885627,-500.0,0.0004,8]
[394759753,1763929885640,-500.0,0.0004,8]
[394759754,1763929885649,-500.0,0.0004,8]
[394759755,1763929885658,-500.0,0.0004,8]
[394759756,1763929885667,-500.0,0.0004,8]
[394759757,1763929885677,-500.0,0.0004,8]
[394759758,1763929885686,-639.91,0.0004,8]
[394759759,1763929885697,-584.27,0.0004,8]
[394759760,1763929885707,-702.21,0.0004,8]
[394759761,1763929885716,-500.0,0.0004,8]
[394759762,1763929885726,-500.0,0.0004,8]
[394759763,1763929885735,-500.0,0.0004,8]
[394759764,1763929885747,-500.0,0.0004,8]
[394759765,1763929885757,-563.64059606,0.0004,8]
[394759766,1763929885768,-500.0,0.0004,8]
[394759767,1763929885778,-500.0,0.0004,8]
[394759768,1763929885789,-673.92,0.0004,8]
[394759769,1763929885798,-500.0,0.0004,8]
[394759770,1763929885807,-425.46050555,0.0004,8]
[394759771,1763929885817,-500.0,0.0004,8]
[394759772,1763929885827,-500.0,0.0004,8]
[394759773,1763929885836,-500.0,0.0004,8]
[394759774,1763929885846,-500.0,0.0004,8]
[394759775,1763929885855,-709.69,0.0004,8]
[394759776,1763929885864,-500.0,0.0004,8]
[394759777,1763929885874,-500.0,0.0004,8]
[394759778,1763929885883,-151.0,0.0004,120]
[394759779,1763929885893,-793.62,0.0004,8]
[394759780,1763929885902,-500.0,0.0004,8]
[394759781,1763929885912,-500.0,0.0004,8]
[394759782,1763929885922,-500.0,0.0004,8]
[394759783,1763929885931,-500.0,0.0004,8]
[394759784,1763929885941,-298.09740913,0.0004,8]
[394759785,1763929885950,-500.0,0.0004,8]
[394759786,1763929885960,-500.0,0.0004,8]
[394759787,1763929885970,-500.0,0.0004,8]
[394759788,1763929885979,-500.0,0.0004,8]
[394759789,1763929885989,-500.0,0.0004,8]
[394759790,1763929885999,-500.0,0.0004,8]
[394759791,1763929886009,-661.66,0.0004,8]
[394759792,1763929886019,-500.0,0.0004,8]
[394759793,1763929886028,-500.0,0.0004,8]
[394759794,1763929886038,-553.0,0.0004,8]
[394759795,1763929886047,-790.75,0.0004,8]
[394759796,1763929886057,-500.0,0.0004,8]
[394759797,1763929886066,-500.0,0.0004,8]
[394759798,1763929886075,-570.22855445,0.0004,8]
[394759799,1763929886085,-500.0,0.0004,8]
[394759800,1763929886094,-500.0,0.0004,8]
[394759801,1763929886104,-636.72,0.0004,8]
[394759802,1763929886113,-500.0,0.0004,8]
[394759803,1763929886122,-576.8,0.0004,8]
[394759804,1763929886132,-549.64,0.0004,8]
[394759805,1763929886141,-1124.75,0.0004,8]
[394759806,1763929886151,-500.0,0.0004,8]
[394759807,1763929886160,-500.0,0.0004,8]
[394759808,1763929886169,-500.0,0.0004,8]
[394759809,1763929886178,-576.65,0.0004,8]
[394759810,1763929886188,-500.0,0.0004,8]
[394759811,1763929886197,-505.96,0.0004,8]
[394759812,1763929886206,-505.6,0.0004,8]
[394759813,1763929886216,-500.0,0.0004,8]
[394759814,1763929886225,-500.0,0.0004,8]
[394759815,1763929886234,-500.0,0.0004,8]
[394759816,1763929886244,-500.0,0.0004,8]
[394759817,1763929886254,-622.8,0.0004,8]
[394759818,1763929886265,-500.0,0.0004,8]
[394759819,1763929886275,-150.62110471,0.0004,8]
[394759820,1763929886286,-500.0,0.0004,8]
[394759821,1763929886296,-195.2928427,0.0004,8]
[394759822,1763929886306,-847.47,0.0004,8]
[394759823,1763929886316,-596.94,0.0004,8]
[394759824,1763929886326,-500.0,0.0004,8]
[394759825,1763929886335,-500.0,0.0004,8]
[394759826,1763929886344,-500.0,0.0004,8]
[394759827,1763929886353,-500.0,0.0004,8]
[394759828,1763929886362,-500.0,0.0004,8]
[394759829,1763929886372,-500.0,0.0004,8]
[394759830,1763929886381,-500.0,0.0004,8]
[394759831,1763929886390,-339.13898547,0.0004,8]
[394759832,1763929886400,-500.0,0.0004,8]